[Event "Turniej 30-lecia Liceum im. Józefa Bema"]
[Site "Warsaw, Poland"]
[Date "????.??.??"]
[Round "2.10"]
[White "Klim, Filip"]
[Black "Rylski, Tadeusz"]
[Result "0-1"]
[TimeControl "0:10:02"]
[WhiteElo "1577"]
[BlackElo "1358"]

1. e4 {[%clk 00:10:03]} c6 {[%clk 00:10:04]} 2. d4 {[%clk 00:10:03]} {[%emt
00:00:01]} d5 {[%clk 00:10:05]} {[%emt 00:00:01]} 3. Nc3 {[%clk 00:10:04]} dxe4
{[%clk 00:10:05]} {[%emt 00:00:02]} 4. Nxe4 {[%clk 00:10:05]} {[%emt 00:00:01]}
Nf6 {[%clk 00:10:06]} {[%emt 00:00:01]} 5. Nxf6+ {[%clk 00:10:05]} {[%emt
00:00:02]} exf6 {[%clk 00:10:07]} {[%emt 00:00:01]} 6. c3 {[%clk 00:10:06]} Bd6
{[%clk 00:10:07]} {[%emt 00:00:02]} 7. Nf3 {[%clk 00:10:03]} {[%emt 00:00:05]}
O-O {[%clk 00:10:02]} {[%emt 00:00:08]} 8. Be2 {[%clk 00:09:59]} {[%emt
00:00:06]} Be6 {[%clk 00:09:37]} {[%emt 00:00:26]} 9. O-O {[%clk 00:09:46]}
{[%emt 00:00:15]} Nd7 {[%clk 00:09:35]} {[%emt 00:00:05]} 10. Qd3 {[%clk
00:08:56]} {[%emt 00:00:52]} Nb6 {[%clk 00:09:30]} {[%emt 00:00:07]} 11. Be3
{[%clk 00:08:27]} {[%emt 00:00:30]} Re8 {[%clk 00:09:06]} {[%emt 00:00:26]} 12.
Nd2 {[%clk 00:08:07]} {[%emt 00:00:21]} Qc7 {[%clk 00:08:35]} {[%emt 00:00:34]}
13. h3 {[%clk 00:07:51]} {[%emt 00:00:18]} Nd5 {[%clk 00:08:11]} {[%emt
00:00:26]} 14. Nc4 {[%clk 00:06:02]} {[%emt 00:01:50]} Bf4 {[%clk 00:06:50]}
{[%emt 00:01:24]} 15. Bf3 {[%clk 00:04:06]} {[%emt 00:01:58]} b5 {[%clk
00:05:02]} {[%emt 00:01:50]} 16. Bxd5 {[%clk 00:03:06]} {[%emt 00:01:02]} Bxd5
{[%clk 00:04:27]} {[%emt 00:00:37]} 17. Bxf4 {[%clk 00:02:50]} {[%emt
00:00:18]} Qxf4 {[%clk 00:04:14]} {[%emt 00:00:16]} 18. Ne3 {[%clk 00:02:43]}
{[%emt 00:00:09]} Be4 {[%clk 00:03:46]} {[%emt 00:00:30]} 19. Qd2 {[%clk
00:02:16]} {[%emt 00:00:29]} Rad8 {[%clk 00:03:42]} {[%emt 00:00:06]} 20. Rad1
{[%clk 00:01:45]} {[%emt 00:00:32]} Qg5 {[%clk 00:03:24]} {[%emt 00:00:20]} 21.
a3 {[%clk 00:00:54]} {[%emt 00:00:54]} Qg6 {[%clk 00:02:16]} {[%emt 00:01:09]}
22. f3 {[%clk 00:00:22]} {[%emt 00:00:35]} Bd5 {[%clk 00:02:10]} {[%emt
00:00:08]} 23. Nxd5 {[%clk 00:00:23]} {[%emt 00:00:02]} Rxd5 {[%clk 00:02:11]}
24. Rf2 {[%clk 00:00:22]} {[%emt 00:00:03]} Rg5 {[%clk 00:02:09]} {[%emt
00:00:04]} 25. Qf4 {[%clk 00:00:19]} {[%emt 00:00:05]} h6 {[%clk 00:01:55]}
{[%emt 00:00:16]} 26. Qc7 {[%clk 00:00:18]} {[%emt 00:00:03]} Re3 {[%clk
00:01:15]} {[%emt 00:00:41]} 27. Qxc6 {[%clk 00:00:17]} {[%emt 00:00:04]} Rg3
{[%clk 00:01:14]} {[%emt 00:00:02]} 28. Qc8+ {[%clk 00:00:09]} {[%emt
00:00:11]} Kh7 {[%clk 00:01:15]} {[%emt 00:00:02]} 29. Rdd2 {[%clk 00:00:09]}
{[%emt 00:00:02]} f5 {[%clk 00:00:42]} {[%emt 00:00:34]} 30. Kh2 {[%clk
00:00:06]} {[%emt 00:00:05]} f4 {[%clk 00:00:22]} {[%emt 00:00:22]} 31. Qb7
{[%clk 00:00:06]} {[%emt 00:00:01]} Re1 {[%clk 00:00:20]} {[%emt 00:00:05]} 32.
b3 {[%clk 00:00:06]} {[%emt 00:00:03]} Qb1 {[%clk 00:00:19]} {[%emt 00:00:03]}
33. Rf1 {[%clk 00:00:03]} {[%emt 00:00:06]} Rxf1 {[%clk 00:00:16]} {[%emt
00:00:04]} 34. Rd1 {[%clk 00:00:03]} {[%emt 00:00:01]} Rxd1 {[%clk 00:00:13]}
{[%emt 00:00:05]} 35. Qe4+ {[%clk 00:00:04]} {[%emt 00:00:02]} Qxe4 {[%clk
00:00:13]} {[%emt 00:00:02]} 36. fxe4 {[%clk 00:00:05]} {[%emt 00:00:01]} Rxc3
{[%emt 00:00:07]} 0-1

[Event "Turniej 30-lecia Liceum im. Józefa Bema"]
[Site "Warsaw, Poland"]
[Date "????.??.??"]
[Round "3.1"]
[White "Nurkiewicz, Maciej"]
[Black "Adamski, Jan"]
[Result "0-1"]
[TimeControl "0:10:02"]
[WhiteElo "2301"]
[BlackElo "2127"]

1. d4 {[%clk 00:10:02]} {[%emt 00:00:02]} Nf6 {[%clk 00:10:00]} {[%emt
00:00:04]} 2. c4 {[%clk 00:10:02]} {[%emt 00:00:02]} e6 {[%clk 00:10:01]}
{[%emt 00:00:01]} 3. Nf3 {[%clk 00:10:03]} {[%emt 00:00:02]} Bb4+ {[%clk
00:10:00]} {[%emt 00:00:02]} 4. Bd2 {[%clk 00:10:02]} {[%emt 00:00:03]} Qe7
{[%clk 00:10:01]} {[%emt 00:00:02]} 5. e3 {[%clk 00:09:44]} {[%emt 00:00:20]}
O-O {[%clk 00:09:58]} {[%emt 00:00:05]} 6. Bd3 {[%clk 00:09:42]} {[%emt
00:00:05]} Bxd2+ {[%clk 00:09:54]} {[%emt 00:00:05]} 7. Nbxd2 {[%clk 00:09:35]}
{[%emt 00:00:09]} d6 {[%clk 00:09:55]} {[%emt 00:00:01]} 8. O-O {[%clk
00:09:12]} {[%emt 00:00:25]} e5 {[%clk 00:09:55]} {[%emt 00:00:02]} 9. Qc2
{[%clk 00:09:00]} {[%emt 00:00:15]} Re8 {[%clk 00:09:26]} {[%emt 00:00:30]} 10.
Bf5 {[%clk 00:07:50]} {[%emt 00:01:12]} Bxf5 {[%clk 00:07:52]} {[%emt
00:01:36]} 11. Qxf5 {[%clk 00:07:49]} {[%emt 00:00:03]} e4 {[%clk 00:07:37]}
{[%emt 00:00:17]} 12. Ne1 {[%clk 00:07:42]} {[%emt 00:00:10]} c5 {[%clk
00:07:18]} {[%emt 00:00:21]} 13. Nc2 {[%clk 00:07:30]} {[%emt 00:00:14]} Nc6
{[%clk 00:06:43]} {[%emt 00:00:38]} 14. Rae1 {[%clk 00:07:26]} {[%emt
00:00:06]} a5 {[%clk 00:06:27]} {[%emt 00:00:18]} 15. a3 {[%clk 00:06:24]}
{[%emt 00:01:04]} a4 {[%clk 00:06:05]} {[%emt 00:00:24]} 16. f3 {[%clk
00:05:49]} {[%emt 00:00:36]} Na5 {[%clk 00:04:56]} {[%emt 00:01:11]} 17. fxe4
{[%clk 00:05:04]} {[%emt 00:00:47]} Nb3 {[%clk 00:04:19]} {[%emt 00:00:40]} 18.
Nxb3 {[%clk 00:04:56]} {[%emt 00:00:10]} axb3 {[%clk 00:04:19]} {[%emt
00:00:01]} 19. Na1 {[%clk 00:04:56]} {[%emt 00:00:02]} Qxe4 {[%clk 00:03:56]}
{[%emt 00:00:25]} 20. Qxe4 {[%clk 00:04:55]} {[%emt 00:00:04]} Rxe4 {[%clk
00:03:19]} {[%emt 00:00:38]} 21. Nxb3 {[%clk 00:04:43]} {[%emt 00:00:14]} b6
{[%clk 00:03:15]} {[%emt 00:00:06]} 22. Rf4 {[%clk 00:04:06]} {[%emt 00:00:39]}
Re7 {[%clk 00:02:31]} {[%emt 00:00:46]} 23. Nd2 {[%clk 00:03:43]} {[%emt
00:00:26]} Rae8 {[%clk 00:02:21]} {[%emt 00:00:11]} 24. Kf2 {[%clk 00:03:42]}
{[%emt 00:00:03]} Nh5 {[%clk 00:02:07]} {[%emt 00:00:16]} 25. Rh4 {[%clk
00:03:30]} {[%emt 00:00:14]} g6 {[%clk 00:02:04]} {[%emt 00:00:05]} 26. Nf3
{[%clk 00:02:47]} {[%emt 00:00:46]} f5 {[%clk 00:01:49]} {[%emt 00:00:17]} 27.
d5 {[%clk 00:02:06]} {[%emt 00:00:43]} Nf6 {[%clk 00:01:42]} {[%emt 00:00:09]}
28. Ng5 {[%clk 00:01:19]} {[%emt 00:00:48]} b5 {[%clk 00:01:32]} {[%emt
00:00:12]} 29. h3 {[%clk 00:00:40]} {[%emt 00:00:41]} bxc4 {[%clk 00:01:27]}
{[%emt 00:00:08]} 30. Rxc4 {[%clk 00:00:41]} {[%emt 00:00:01]} Nxd5 {[%clk
00:01:27]} 31. e4 {[%clk 00:00:26]} {[%emt 00:00:18]} Nb6 {[%clk 00:01:10]}
{[%emt 00:00:19]} 32. Rc2 {[%clk 00:00:27]} h6 {[%clk 00:01:09]} {[%emt
00:00:03]} 33. Nf3 {[%clk 00:00:22]} {[%emt 00:00:06]} fxe4 {[%clk 00:01:08]}
{[%emt 00:00:03]} 34. Ng1 {[%clk 00:00:19]} {[%emt 00:00:05]} Rf7+ {[%clk
00:01:05]} {[%emt 00:00:05]} 35. Kg3 {[%clk 00:00:18]} {[%emt 00:00:03]} Nd5
{[%clk 00:00:58]} {[%emt 00:00:09]} 36. Rd2 {[%clk 00:00:16]} {[%emt 00:00:04]}
Rf5 {[%clk 00:00:55]} {[%emt 00:00:05]} 37. Red1 {[%clk 00:00:16]} {[%emt
00:00:01]} Ne3 {[%clk 00:00:50]} {[%emt 00:00:07]} 0-1

[Event "Turniej 30-lecia Liceum im. Józefa Bema"]
[Site "Warsaw, Poland"]
[Date "????.??.??"]
[Round "3.2"]
[White "Praczukowski, Stanislaw"]
[Black "Owczarzak, Jerzy"]
[Result "0-1"]
[TimeControl "0:10:02"]
[WhiteElo "2113"]
[BlackElo "2264"]

1. d4 {[%clk 00:10:03]} {[%emt 00:00:16]} b5 {[%clk 00:10:02]} {[%emt
00:00:02]} 2. e4 {[%clk 00:09:59]} {[%emt 00:00:05]} Bb7 {[%clk 00:10:03]}
{[%emt 00:00:02]} 3. Bd3 {[%clk 00:09:55]} {[%emt 00:00:06]} Nf6 {[%clk
00:10:03]} {[%emt 00:00:02]} 4. Nd2 {[%clk 00:09:53]} {[%emt 00:00:04]} e6
{[%clk 00:10:02]} {[%emt 00:00:04]} 5. Ne2 {[%clk 00:09:51]} {[%emt 00:00:04]}
c5 {[%clk 00:09:55]} {[%emt 00:00:09]} 6. c3 {[%clk 00:09:40]} {[%emt
00:00:12]} Qb6 {[%clk 00:08:52]} {[%emt 00:01:06]} 7. O-O {[%clk 00:09:33]}
{[%emt 00:00:09]} cxd4 {[%clk 00:07:02]} {[%emt 00:01:52]} 8. cxd4 {[%clk
00:09:18]} {[%emt 00:00:17]} Nc6 {[%clk 00:07:01]} {[%emt 00:00:03]} 9. e5
{[%clk 00:08:34]} {[%emt 00:00:46]} Nd5 {[%clk 00:06:58]} {[%emt 00:00:05]} 10.
Nf3 {[%clk 00:08:03]} {[%emt 00:00:33]} Be7 {[%clk 00:05:54]} {[%emt 00:01:06]}
11. a3 {[%clk 00:07:49]} {[%emt 00:00:16]} b4 {[%clk 00:05:18]} {[%emt
00:00:39]} 12. Bg5 {[%clk 00:06:34]} {[%emt 00:01:16]} f6 {[%clk 00:03:55]}
{[%emt 00:01:24]} 13. exf6 {[%clk 00:06:20]} {[%emt 00:00:17]} gxf6 {[%clk
00:03:41]} {[%emt 00:00:16]} 14. Bd2 {[%clk 00:05:56]} {[%emt 00:00:25]} a5
{[%clk 00:03:20]} {[%emt 00:00:24]} 15. Re1 {[%clk 00:05:35]} {[%emt 00:00:23]}
O-O-O {[%clk 00:02:10]} {[%emt 00:01:13]} 16. Qa4 {[%clk 00:05:09]} {[%emt
00:00:27]} Rdg8 {[%clk 00:01:56]} {[%emt 00:00:16]} 17. Ng3 {[%clk 00:03:27]}
{[%emt 00:01:44]} f5 {[%clk 00:00:53]} {[%emt 00:01:06]} 18. Rec1 {[%clk
00:03:05]} {[%emt 00:00:24]} Kd8 {[%clk 00:00:49]} {[%emt 00:00:06]} 19. axb4
{[%clk 00:02:56]} {[%emt 00:00:10]} axb4 {[%clk 00:00:43]} {[%emt 00:00:09]} 20.
Ne5 {[%clk 00:02:23]} {[%emt 00:00:35]} Ke8 {[%clk 00:00:16]} {[%emt 00:00:29]}
21. Nxc6 {[%clk 00:02:09]} {[%emt 00:00:16]} Bxc6 {[%clk 00:00:16]} {[%emt
00:00:02]} 22. Qa7 {[%clk 00:01:55]} {[%emt 00:00:16]} Kf7 {[%clk 00:00:10]}
{[%emt 00:00:09]} 23. Qxb6 Nxb6 {[%clk 00:00:11]} 24. Ra7 {[%clk 00:01:26]}
{[%emt 00:00:26]} h5 {[%clk 00:00:08]} {[%emt 00:00:05]} 25. Bf1 {[%clk
00:01:21]} {[%emt 00:00:07]} h4 {[%clk 00:00:08]} {[%emt 00:00:02]} 26. Ne2
{[%clk 00:01:22]} Nd5 {[%clk 00:00:08]} {[%emt 00:00:02]} 27. Nf4 {[%clk
00:01:08]} {[%emt 00:00:16]} Nxf4 {[%clk 00:00:09]} {[%emt 00:00:01]} 28. Bxf4
{[%clk 00:01:09]} Ra8 {[%clk 00:00:10]} 29. Rca1 {[%clk 00:01:03]} {[%emt
00:00:08]} Rxa7 {[%clk 00:00:11]} 30. Rxa7 {[%emt 00:00:02]} Ra8 {[%clk
00:00:13]} 31. Rxa8 {[%clk 00:00:56]} {[%emt 00:00:10]} Bxa8 {[%clk 00:00:14]}
32. Bb5 {[%clk 00:00:47]} {[%emt 00:00:11]} Bc6 {[%clk 00:00:11]} {[%emt
00:00:05]} 33. Bc4 {[%clk 00:00:36]} {[%emt 00:00:13]} Bf6 {[%clk 00:00:11]}
{[%emt 00:00:02]} 34. Be3 {[%clk 00:00:29]} {[%emt 00:00:09]} d6 {[%clk
00:00:10]} {[%emt 00:00:04]} 35. b3 {[%clk 00:00:17]} {[%emt 00:00:14]} Ke7
{[%clk 00:00:11]} {[%emt 00:00:01]} 36. Bd2 {[%clk 00:00:12]} {[%emt 00:00:07]}
Bxd4 {[%clk 00:00:11]} {[%emt 00:00:01]} 37. Bxb4 {[%clk 00:00:13]} Bc5 {[%emt
00:00:03]} 38. Bd2 {[%clk 00:00:12]} {[%emt 00:00:02]} Kf6 {[%clk 00:00:12]}
{[%emt 00:00:01]} 39. b4 {[%clk 00:00:07]} {[%emt 00:00:07]} Bd4 {[%clk
00:00:14]} 40. b5 {[%clk 00:00:08]} {[%emt 00:00:01]} Bb7 {[%clk 00:00:15]} 41.
Kf1 {[%clk 00:00:06]} {[%emt 00:00:04]} e5 {[%clk 00:00:15]} {[%emt 00:00:01]}
42. Ba5 {[%clk 00:00:05]} {[%emt 00:00:04]} Ke7 {[%clk 00:00:15]} {[%emt
00:00:01]} 43. Bd2 {[%clk 00:00:05]} {[%emt 00:00:02]} f4 {[%clk 00:00:15]}
{[%emt 00:00:02]} 44. h3 {[%clk 00:00:04]} {[%emt 00:00:03]} d5 {[%clk
00:00:15]} {[%emt 00:00:03]} 45. Be2 {[%clk 00:00:04]} {[%emt 00:00:02]} Kd6
{[%clk 00:00:17]} 46. Bb4+ {[%clk 00:00:05]} {[%emt 00:00:01]} Bc5 {[%clk
00:00:18]} 47. Ba5 {[%clk 00:00:06]} d4 {[%clk 00:00:17]} {[%emt 00:00:03]} 48.
Bd8 {[%clk 00:00:07]} {[%emt 00:00:01]} Be4 {[%clk 00:00:18]} 49. Bxh4 {[%emt
00:00:03]} d3 50. Bd1 {[%clk 00:00:08]} {[%emt 00:00:01]} Bd4 {[%clk 00:00:20]}
{[%emt 00:00:02]} 51. Bf6 {[%clk 00:00:06]} {[%emt 00:00:03]} Kc5 {[%clk
00:00:22]} 52. g4 {[%clk 00:00:07]} {[%emt 00:00:02]} fxg3 {[%clk 00:00:22]}
{[%emt 00:00:02]} 53. fxg3 {[%clk 00:00:08]} Bf5 {[%clk 00:00:22]} {[%emt
00:00:02]} 54. g4 {[%clk 00:00:08]} {[%emt 00:00:02]} Bd7 {[%clk 00:00:23]} 55.
h4 {[%clk 00:00:08]} {[%emt 00:00:02]} Bxb5 {[%clk 00:00:17]} {[%emt 00:00:08]}
56. h5 {[%clk 00:00:09]} Be8 {[%clk 00:00:18]} 57. Kg2 {[%clk 00:00:06]} {[%emt
00:00:06]} e4 {[%clk 00:00:19]} 58. Be7+ {[%clk 00:00:06]} {[%emt 00:00:02]}
Kd5 {[%clk 00:00:19]} {[%emt 00:00:01]} 59. Bb3+ {[%clk 00:00:07]} {[%emt
00:00:02]} Ke5 {[%clk 00:00:21]} 60. Kg3 {[%clk 00:00:06]} {[%emt 00:00:03]} e3
{[%clk 00:00:21]} {[%emt 00:00:02]} 61. Bb4 {[%clk 00:00:05]} {[%emt 00:00:03]}
Kf6 {[%clk 00:00:21]} {[%emt 00:00:02]} 62. Kf3 {[%clk 00:00:06]} {[%emt
00:00:02]} Bc6+ {[%clk 00:00:22]} 63. Kg3 {[%clk 00:00:07]} Be5+ {[%clk
00:00:22]} {[%emt 00:00:02]} 64. Kh4 {[%clk 00:00:07]} {[%emt 00:00:01]} Bf4
{[%clk 00:00:23]} {[%emt 00:00:01]} 65. Bc3+ {[%clk 00:00:08]} {[%emt
00:00:02]} Ke7 {[%clk 00:00:22]} {[%emt 00:00:02]} 66. g5 {[%clk 00:00:07]}
{[%emt 00:00:02]} Bf3 {[%clk 00:00:24]} 67. Bb4+ {[%clk 00:00:05]} {[%emt
00:00:04]} Kd7 {[%clk 00:00:25]} {[%emt 00:00:01]} 68. Ba4+ {[%clk 00:00:07]}
Kc7 {[%clk 00:00:26]} 69. h6 {[%clk 00:00:07]} {[%emt 00:00:01]} e2 {[%clk
00:00:26]} {[%emt 00:00:02]} 70. h7 {[%clk 00:00:08]} {[%emt 00:00:02]} d2
{[%clk 00:00:27]} 71. h8=Q {[%clk 00:00:03]} {[%emt 00:00:06]} e1=Q+ {[%clk
00:00:28]} {[%emt 00:00:01]} 72. Kh3 {[%clk 00:00:04]} {[%emt 00:00:02]} Qh1#
{[%clk 00:00:28]} {[%emt 00:00:02]} 0-1

[Event "Turniej 30-lecia Liceum im. Józefa Bema"]
[Site "Warsaw, Poland"]
[Date "????.??.??"]
[Round "3.3"]
[White "Babik, Tomasz"]
[Black "Szymczak, Rafal"]
[Result "1-0"]
[TimeControl "0:10:02"]
[WhiteElo "2187"]
[BlackElo "2021"]

1. c4 {[%clk 00:10:01]} {[%emt 00:00:01]} e6 {[%clk 00:10:01]} {[%emt
00:00:04]} 2. g3 {[%clk 00:10:00]} {[%emt 00:00:04]} d5 {[%clk 00:10:02]} 3.
Bg2 {[%clk 00:10:01]} {[%emt 00:00:02]} c6 {[%clk 00:10:03]} {[%emt 00:00:02]}
4. b3 {[%clk 00:10:00]} {[%emt 00:00:02]} f5 {[%clk 00:10:03]} {[%emt
00:00:02]} 5. Bb2 {[%clk 00:10:00]} {[%emt 00:00:02]} Nf6 {[%clk 00:10:04]}
{[%emt 00:00:01]} 6. d3 {[%clk 00:09:59]} {[%emt 00:00:02]} Bb4+ {[%clk
00:09:54]} {[%emt 00:00:12]} 7. Nd2 {[%clk 00:09:59]} {[%emt 00:00:02]} a5
{[%clk 00:09:27]} {[%emt 00:00:30]} 8. a3 {[%clk 00:09:46]} {[%emt 00:00:15]}
Be7 {[%clk 00:09:22]} {[%emt 00:00:06]} 9. Ngf3 {[%clk 00:09:46]} {[%emt
00:00:03]} O-O {[%clk 00:09:17]} {[%emt 00:00:07]} 10. O-O {[%clk 00:09:46]}
{[%emt 00:00:02]} Bd7 {[%clk 00:09:07]} {[%emt 00:00:12]} 11. Qc2 {[%clk
00:08:39]} {[%emt 00:01:09]} Na6 {[%clk 00:08:47]} {[%emt 00:00:22]} 12. e4
{[%clk 00:08:36]} {[%emt 00:00:05]} fxe4 {[%clk 00:08:17]} {[%emt 00:00:32]} 13.
dxe4 {[%clk 00:08:37]} Nc7 {[%clk 00:07:02]} {[%emt 00:01:17]} 14. Rad1 {[%clk
00:08:30]} {[%emt 00:00:09]} Be8 {[%clk 00:06:51]} {[%emt 00:00:13]} 15. exd5
{[%clk 00:06:16]} {[%emt 00:02:15]} exd5 {[%clk 00:06:48]} {[%emt 00:00:05]} 16.
Qc3 {[%clk 00:05:59]} {[%emt 00:00:19]} Bh5 {[%clk 00:06:36]} {[%emt 00:00:13]}
17. h3 {[%clk 00:05:25]} {[%emt 00:00:37]} Qc8 {[%clk 00:06:24]} {[%emt
00:00:14]} 18. g4 {[%clk 00:05:19]} {[%emt 00:00:08]} Bg6 {[%clk 00:04:52]}
{[%emt 00:01:33]} 19. Ne5 {[%clk 00:05:18]} {[%emt 00:00:04]} Bf7 {[%clk
00:04:16]} {[%emt 00:00:38]} 20. Rfe1 {[%emt 00:00:30]} Bc5 {[%clk 00:03:55]}
{[%emt 00:00:04]} 21. cxd5 {[%clk 00:04:22]} {[%emt 00:00:50]} Bxf2+ {[%clk
00:02:20]} {[%emt 00:01:37]} 22. Kxf2 {[%clk 00:04:20]} {[%emt 00:00:04]} Bxd5
{[%clk 00:02:18]} {[%emt 00:00:04]} 23. Kg1 {[%clk 00:04:09]} {[%emt 00:00:12]}
Bxg2 {[%clk 00:02:15]} {[%emt 00:00:06]} 24. Kxg2 {[%clk 00:04:10]} Ncd5 {[%clk
00:02:10]} {[%emt 00:00:07]} 25. Qg3 {[%clk 00:03:53]} {[%emt 00:00:19]} h5
{[%clk 00:01:53]} {[%emt 00:00:20]} 26. g5 {[%clk 00:03:40]} {[%emt 00:00:15]}
h4 {[%clk 00:01:50]} {[%emt 00:00:05]} 27. Qxh4 {[%clk 00:03:28]} {[%emt
00:00:14]} Nh5 {[%clk 00:01:35]} {[%emt 00:00:17]} 28. Ng6 {[%clk 00:02:28]}
{[%emt 00:01:02]} Qf5 {[%clk 00:00:33]} {[%emt 00:01:04]} 29. Qxh5 {[%clk
00:01:32]} {[%emt 00:00:58]} Qxg6 {[%clk 00:00:12]} {[%emt 00:00:23]} 30. Qxg6
{[%clk 00:01:32]} {[%emt 00:00:02]} Nf4+ {[%clk 00:00:14]} 31. Kg3 {[%clk
00:01:32]} {[%emt 00:00:02]} Nxg6 {[%clk 00:00:15]} 32. Nc4 {[%clk 00:01:24]}
{[%emt 00:00:10]} Nf4 {[%clk 00:00:10]} {[%emt 00:00:08]} 33. Rf1 {[%clk
00:01:12]} {[%emt 00:00:14]} Nd5 {[%clk 00:00:05]} {[%emt 00:00:07]} 34. Bd4
{[%clk 00:01:05]} {[%emt 00:00:08]} Rfe8 {[%emt 00:00:16]} 1-0

[Event "Turniej 30-lecia Liceum im. Józefa Bema"]
[Site "Warsaw, Poland"]
[Date "????.??.??"]
[Round "3.4"]
[White "Rylski, Tadeusz"]
[Black "Dworakowski, Lukasz"]
[Result "1-0"]
[TimeControl "0:10:02"]
[WhiteElo "1358"]
[BlackElo "2185"]

1. d4 {[%emt 00:00:17]} Nf6 {[%emt 00:00:01]} 2. c4 {[%emt 00:00:01]} g6 {[%emt
00:00:01]} 3. g3 {[%emt 00:00:03]} Bg7 {[%emt 00:00:02]} 4. Bg2 {[%emt
00:00:03]} O-O {[%emt 00:00:03]} 5. Nf3 {[%emt 00:00:02]} c6 {[%emt 00:00:12]}
6. O-O {[%clk 00:09:53]} {[%emt 00:00:09]} d6 {[%clk 00:09:52]} {[%emt
00:00:04]} 7. Nc3 {[%clk 00:09:46]} {[%emt 00:00:09]} Bf5 {[%clk 00:09:36]}
{[%emt 00:00:18]} 8. b3 {[%clk 00:09:16]} {[%emt 00:00:32]} Qc8 {[%clk
00:08:46]} {[%emt 00:00:52]} 9. Bb2 {[%clk 00:08:54]} {[%emt 00:00:23]} Bh3
{[%clk 00:08:40]} {[%emt 00:00:08]} 10. Rc1 {[%clk 00:08:46]} {[%emt 00:00:11]}
Bh6 {[%clk 00:07:45]} {[%emt 00:00:57]} 11. e3 {[%clk 00:08:17]} {[%emt
00:00:30]} Na6 {[%clk 00:07:14]} {[%emt 00:00:32]} 12. Qe2 {[%clk 00:07:26]}
{[%emt 00:00:53]} Re8 {[%clk 00:06:51]} {[%emt 00:00:26]} 13. Rfd1 {[%clk
00:07:19]} {[%emt 00:00:09]} Qg4 {[%clk 00:06:23]} {[%emt 00:00:29]} 14. Nh4
{[%clk 00:06:29]} {[%emt 00:00:52]} Qxe2 {[%clk 00:04:20]} {[%emt 00:02:06]} 15.
Nxe2 {[%clk 00:06:30]} {[%emt 00:00:01]} Nb4 {[%clk 00:04:17]} {[%emt
00:00:05]} 16. Bxh3 {[%clk 00:06:00]} {[%emt 00:00:31]} Nxa2 {[%clk 00:04:14]}
{[%emt 00:00:15]} 1-0

[Event "Turniej 30-lecia Liceum im. Józefa Bema"]
[Site "Warsaw, Poland"]
[Date "????.??.??"]
[Round "3.5"]
[White "Maciaga, Marcin"]
[Black "Szewczak, Anna"]
[Result "1-0"]
[TimeControl "0:10:02"]
[WhiteElo "2159"]
[BlackElo "2005"]

1. g3 {[%clk 00:10:00]} {[%emt 00:00:02]} d5 {[%clk 00:10:00]} {[%emt
00:00:05]} 2. c4 {[%clk 00:10:00]} {[%emt 00:00:02]} c6 {[%clk 00:09:56]}
{[%emt 00:00:06]} 3. Nf3 {[%clk 00:09:59]} {[%emt 00:00:03]} Nf6 {[%clk
00:09:48]} {[%emt 00:00:10]} 4. d4 {[%clk 00:09:58]} {[%emt 00:00:02]} g6
{[%clk 00:09:34]} {[%emt 00:00:17]} 5. Bg2 {[%clk 00:09:58]} {[%emt 00:00:02]}
Bg7 {[%clk 00:09:35]} {[%emt 00:00:01]} 6. O-O {[%clk 00:09:57]} {[%emt
00:00:03]} O-O {[%clk 00:09:35]} {[%emt 00:00:02]} 7. Qb3 {[%clk 00:09:56]}
{[%emt 00:00:03]} dxc4 {[%clk 00:09:05]} {[%emt 00:00:32]} 8. Qxc4 {[%clk
00:09:55]} {[%emt 00:00:02]} Nbd7 {[%clk 00:08:27]} {[%emt 00:00:40]} 9. Nc3
{[%clk 00:09:49]} {[%emt 00:00:07]} Nb6 {[%clk 00:08:17]} {[%emt 00:00:13]} 10.
Qb3 {[%clk 00:09:48]} {[%emt 00:00:03]} Be6 {[%clk 00:08:08]} {[%emt 00:00:12]}
11. Qc2 {[%clk 00:09:46]} {[%emt 00:00:04]} Nbd5 {[%clk 00:06:49]} {[%emt
00:01:22]} 12. e4 {[%clk 00:09:28]} {[%emt 00:00:19]} Nxc3 {[%clk 00:05:48]}
{[%emt 00:01:04]} 13. bxc3 {[%clk 00:09:26]} {[%emt 00:00:03]} Rc8 {[%clk
00:04:35]} {[%emt 00:01:15]} 14. Re1 {[%clk 00:08:32]} {[%emt 00:00:55]} Bc4
{[%clk 00:04:07]} {[%emt 00:00:30]} 15. a4 {[%clk 00:07:25]} {[%emt 00:01:10]}
b6 {[%clk 00:04:01]} {[%emt 00:00:08]} 16. Ba3 {[%clk 00:07:20]} {[%emt
00:00:07]} Re8 {[%clk 00:03:56]} {[%emt 00:00:07]} 17. Ne5 {[%clk 00:07:11]}
{[%emt 00:00:10]} Ba6 {[%clk 00:03:30]} {[%emt 00:00:28]} 18. a5 {[%clk
00:07:11]} {[%emt 00:00:03]} b5 {[%clk 00:02:17]} {[%emt 00:01:15]} 19. Nd3
{[%clk 00:06:24]} {[%emt 00:00:48]} Nd7 {[%clk 00:02:04]} {[%emt 00:00:15]} 20.
e5 {[%clk 00:06:08]} {[%emt 00:00:18]} e6 {[%clk 00:01:59]} {[%emt 00:00:07]}
21. Bd6 {[%clk 00:06:00]} {[%emt 00:00:08]} Bf8 {[%clk 00:01:48]} {[%emt
00:00:15]} 22. Nc5 {[%clk 00:05:51]} {[%emt 00:00:12]} Nxc5 {[%clk 00:01:10]}
{[%emt 00:00:40]} 23. dxc5 {[%clk 00:05:50]} {[%emt 00:00:02]} Bg7 {[%clk
00:00:59]} {[%emt 00:00:13]} 24. f4 {[%clk 00:05:44]} {[%emt 00:00:08]} f6
{[%clk 00:00:46]} {[%emt 00:00:15]} 25. Be4 {[%clk 00:05:22]} {[%emt 00:00:24]}
fxe5 {[%clk 00:00:42]} {[%emt 00:00:06]} 26. fxe5 {[%clk 00:05:21]} {[%emt
00:00:03]} Qg5 {[%clk 00:00:33]} {[%emt 00:00:11]} 27. Kg2 {[%clk 00:04:18]}
{[%emt 00:01:05]} Bxe5 {[%clk 00:00:00]} {[%emt 00:00:47]} 1-0